fUSD/lending_fUSD_20240518
["ID","MTS","AMOUNT","RATE_DAILY","PERIOD"]
[327378147,1716029444432,-500.0,0.00035616,9]
[327378148,1716029444442,-500.0,0.00035616,9]
[327378149,1716029444451,-500.0,0.00035616,9]
[327378150,1716029444461,-1134.96,0.00035616,9]
[327378151,1716029444470,-689.13,0.00035616,9]
[327378152,1716029444480,-500.0,0.00035616,9]
[327378153,1716029444489,-500.0,0.00035616,9]
[327378154,1716029444498,-500.0,0.00035616,9]
[327378155,1716029444508,-634.93,0.00035616,9]
[327378156,1716029444518,-500.0,0.00035616,9]
[327378157,1716029444528,-802.85,0.00035616,9]
[327378158,1716029444537,-500.0,0.00035616,9]
[327378159,1716029444547,-823.93,0.00035616,9]
[327378160,1716029444556,-500.0,0.00035616,9]
[327378161,1716029444566,-500.0,0.00035616,9]
[327378162,1716029444576,-500.0,0.00035616,9]
[327378163,1716029444585,-500.0,0.00035616,9]
[327378164,1716029444595,-500.0,0.00035616,9]
[327378165,1716029444604,-500.0,0.00035616,9]
[327378166,1716029444614,-500.0,0.00035616,9]
[327378167,1716029444623,-500.0,0.00035616,9]
[327378168,1716029444633,-500.0,0.00035616,9]
[327378169,1716029444643,-1017.0,0.00035616,9]
[327378170,1716029444652,-500.0,0.00035616,9]
[327378171,1716029444662,-500.0,0.00035616,9]
[327378172,1716029444672,-500.0,0.00035616,9]
[327378173,1716029444682,-500.0,0.00035616,9]
[327378174,1716029444691,-500.0,0.00035616,9]
[327378175,1716029444701,-500.0,0.00035616,9]
[327378176,1716029444711,-653.59,0.00035616,9]
[327378177,1716029444721,-500.0,0.00035616,9]
[327378178,1716029444730,-393.9159797,0.00035616,9]
[327378179,1716029444740,-500.0,0.00035616,9]
[327378180,1716029444750,-500.0,0.00035616,9]
[327378181,1716029444760,-500.0,0.00035616,9]
[327378182,1716029444770,-500.0,0.00035616,9]
[327378183,1716029444781,-500.0,0.00035616,9]
[327378184,1716029444791,-500.0,0.00035616,9]
[327378185,1716029444977,-500.0,0.00035616,9]
[327378186,1716029445012,-504.77462485,0.00035616,9]
[327378187,1716029445027,-500.0,0.00035616,9]
[327378188,1716029445037,-972.79,0.00035616,9]
[327378189,1716029445050,-500.0,0.00035616,9]
[327378190,1716029445060,-500.0,0.00035616,9]
[327378191,1716029445070,-723.8,0.00035616,9]
[327378192,1716029445079,-500.0,0.00035616,9]
[327378193,1716029445088,-752.41,0.00035616,9]
[327378194,1716029445098,-500.0,0.00035616,9]
[327378195,1716029445108,-500.0,0.00035616,9]
[327378196,1716029445117,-500.0,0.00035616,9]
[327378197,1716029445127,-500.0,0.00035616,9]
[327378198,1716029445137,-500.0,0.00035616,9]
[327378199,1716029445147,-500.0,0.00035616,9]
[327378200,1716029445156,-1866.08,0.00035616,9]
[327378201,1716029445165,-500.0,0.00035616,9]
[327378202,1716029445175,-500.0,0.00035616,9]
[327378203,1716029445184,-500.0,0.00035616,9]
[327378204,1716029445193,-500.0,0.00035616,9]
[327378205,1716029445203,-515.03,0.00035616,9]
[327378206,1716029445212,-693.06,0.00035616,9]
[327378207,1716029445221,-500.0,0.00035616,9]
[327378208,1716029445231,-500.0,0.00035616,9]
[327378209,1716029445240,-762.71,0.00035616,9]
[327378210,1716029445249,-507.54,0.00035616,9]
[327378211,1716029445259,-668.52,0.00035616,9]
[327378212,1716029445268,-500.0,0.00035616,9]
[327378213,1716029445277,-500.0,0.00035616,9]
[327378214,1716029445287,-795.97,0.00035616,9]
[327378215,1716029445298,-500.0,0.00035616,9]
[327378216,1716029445307,-500.0,0.00035616,9]
[327378217,1716029445316,-500.0,0.00035616,9]
[327378218,1716029445327,-500.0,0.00035616,9]
[327378219,1716029445337,-500.0,0.00035616,9]
[327378220,1716029445346,-500.0,0.00035616,9]
[327378221,1716029445358,-500.0,0.00035616,9]
[327378222,1716029445368,-1170.25,0.00035616,9]
[327378223,1716029445377,-846.25,0.00035616,9]
[327378224,1716029445386,-500.0,0.00035616,9]
[327378225,1716029445397,-178.96909007,0.00035616,9]
[327378226,1716029445406,-500.0,0.00035616,9]
[327378227,1716029445415,-500.0,0.00035616,9]
[327378228,1716029445425,-500.0,0.00035616,9]
[327378229,1716029445434,-500.0,0.00035616,9]
[327378230,1716029445443,-1438.42,0.00035616,9]
[327378231,1716029445452,-502.37,0.00035616,9]
[327378232,1716029445462,-500.0,0.00035616,9]
[327378233,1716029445471,-3434.94,0.00035616,9]
[327378234,1716029445481,-721.97,0.00035616,9]
[327378235,1716029445490,-885.85,0.00035616,9]
[327378236,1716029445500,-835.21,0.00035616,9]
[327378237,1716029445509,-500.0,0.00035616,9]
[327378238,1716029445518,-3167.51,0.00035616,9]
[327378239,1716029445528,-519.81015004,0.00035616,9]
[327378240,1716029445538,-500.0,0.00035616,9]
[327378241,1716029445548,-2461.24,0.00035616,9]
[327378242,1716029445558,-780.34,0.00035616,9]
[327378243,1716029445568,-500.0,0.00035616,9]
[327378244,1716029445577,-601.75,0.00035616,9]
[327378245,1716029445586,-1114.08,0.00035616,9]
[327378246,1716029445596,-500.0,0.00035616,9]
[327378247,1716029445605,-500.0,0.00035616,9]
[327378248,1716029445614,-500.0,0.00035616,9]
[327378249,1716029445624,-500.0,0.00035616,9]
[327378250,1716029445633,-500.0,0.00035616,9]
[327378251,1716029445643,-500.0,0.00035616,9]
[327378252,1716029445653,-500.0,0.00035616,9]
[327378253,1716029445663,-1757.3,0.00035616,9]
[327378254,1716029445673,-500.0,0.00035616,9]
[327378255,1716029445683,-654.63,0.00035616,9]
[327378256,1716029445693,-571.18,0.00035616,9]
[327378257,1716029445702,-5372.17,0.00035616,9]
[327378258,1716029445712,-689.54,0.00035616,9]
[327378259,1716029445721,-665.45,0.00035616,9]
[327378260,1716029445730,-500.0,0.00035616,9]
[327378261,1716029445740,-500.0,0.00035616,9]
[327378262,1716029445749,-713.23,0.00035616,9]
[327378263,1716029445758,-500.0,0.00035616,9]
[327378264,1716029445768,-500.0,0.00035616,9]
[327378265,1716029445777,-2386.25,0.00035616,9]
[327378266,1716029445787,-500.0,0.00035616,9]
[327378267,1716029445796,-307.3063873,0.00035616,9]
[327378268,1716029445806,-1116.31,0.00035616,9]
[327378269,1716029445815,-500.0,0.00035616,9]
[327378270,1716029445824,-751.33,0.00035616,9]
[327378271,1716029445833,-500.0,0.00035616,9]
[327378272,1716029445843,-500.0,0.00035616,9]
[327378273,1716029445852,-3643.17,0.00035616,9]
[327378274,1716029445862,-1314.37,0.00035616,9]
[327378275,1716029445871,-538.71200839,0.00035616,9]
[327378276,1716029445880,-500.0,0.00035616,9]
[327378277,1716029445890,-596.94,0.00035616,9]
[327378278,1716029445899,-8415.66,0.00035616,9]
[327378279,1716029445909,-933.35,0.00035616,2]
[327378281,1716029445918,-718.28,0.00035616,9]
[327378283,1716029445928,-953.78,0.00035616,9]
[327378285,1716029445937,-500.0,0.00035616,9]
[327378286,1716029445946,-500.0,0.00035616,9]
[327378288,1716029445956,-500.0,0.00035616,9]
[327378289,1716029445965,-500.0,0.00035616,9]
[327378290,1716029445975,-500.0,0.00035616,9]
[327378291,1716029445984,-500.0,0.00035616,9]
[327378292,1716029445994,-500.0,0.00035616,9]
[327378293,1716029446004,-4148.95,0.00035616,9]
[327378294,1716029446014,-519.2,0.00035616,9]
[327378295,1716029446030,-2653.03,0.00035616,9]
[327378296,1716029446040,-626.56,0.00035616,9]
[327378297,1716029446052,-2364.08,0.00035616,9]
[327378298,1716029446063,-500.0,0.00035616,9]
[327378299,1716029446073,-605.6,0.00035616,9]
[327378300,1716029446082,-602.47,0.00035616,9]
[327378301,1716029446092,-500.0,0.00035616,9]
[327378302,1716029446104,-500.0,0.00035616,9]
[327378303,1716029446114,-500.0,0.00035616,9]
[327378304,1716029446123,-564.54,0.00035616,9]
[327378305,1716029446132,-386.34993037,0.00035653,9]
[327378306,1716029446142,-300.0,0.000357,13]
[327378307,1716029446152,-170.35592764,0.0003579,2]
[327378308,1716029446162,-198.49541334,0.0003579,8]
[327378309,1716029446173,-600.0,0.000358,13]
[327378310,1716029446183,-302.0,0.00035822,4]
[327378311,1716029446193,-15893.52871976,0.00035887,2]
[327378312,1716029446202,-500.0,0.00035888,9]
[327378313,1716029446212,-706.35011166,0.00035889,4]
[327378314,1716029446222,-324.29832917,0.00035889,4]
[327378315,1716029446232,-500.0,0.00035889,9]
[327378316,1716029446242,-500.0,0.00035889,9]
[327378317,1716029446252,-638.8,0.00035889,9]
[327378318,1716029446261,-500.0,0.0003589,9]
[327378319,1716029446271,-456.40513437,0.0003589,9]
[327378320,1716029446281,-500.0,0.0003589,9]
[327378321,1716029446290,-500.0,0.0003589,9]
[327378322,1716029446301,-500.0,0.0003589,9]
[327378323,1716029446310,-500.0,0.0003589,9]
[327378324,1716029446319,-500.0,0.0003589,9]
[327378325,1716029446329,-500.0,0.0003589,9]
[327378326,1716029446339,-500.0,0.0003589,9]
[327378327,1716029446348,-500.0,0.0003589,9]
[327378328,1716029446357,-500.0,0.0003589,9]
[327378329,1716029446367,-313.02228647,0.0003589,9]
[327378330,1716029446377,-500.0,0.0003589,9]
[327378331,1716029446386,-275.60411493,0.0003589,9]
[327378332,1716029446396,-500.0,0.0003589,9]
[327378333,1716029446405,-500.0,0.0003589,9]
[327378334,1716029446414,-500.0,0.0003589,9]
[327378335,1716029446423,-500.0,0.0003589,9]
[327378336,1716029446438,-503.31744269,0.0003589,9]
[327378337,1716029446447,-500.0,0.0003589,9]
[327378338,1716029446456,-500.0,0.0003589,9]
[327378339,1716029446466,-248.4614575,0.0003589,9]
[327378340,1716029446475,-500.0,0.0003589,9]
[327378341,1716029446485,-500.0,0.0003589,9]
[327378342,1716029446494,-500.0,0.0003589,9]
[327378344,1716029446503,-504.38502365,0.0003589,9]
[327378346,1716029446513,-500.0,0.0003589,9]
[327378348,1716029446522,-500.0,0.0003589,9]
[327378350,1716029446531,-500.0,0.0003589,9]
[327378352,1716029446541,-500.0,0.0003589,9]
[327378354,1716029446551,-500.0,0.0003589,9]
[327378356,1716029446560,-500.0,0.0003589,9]
[327378358,1716029446570,-607.71184412,0.0003589,9]
[327378360,1716029446579,-500.0,0.0003589,9]
[327378362,1716029446589,-200.37553966,0.0003589,9]
[327378364,1716029446598,-500.0,0.0003589,9]
[327378366,1716029446607,-500.0,0.0003589,9]
[327378368,1716029446616,-500.0,0.0003589,9]
[327378370,1716029446626,-500.0,0.0003589,9]
[327378372,1716029446635,-500.0,0.0003589,9]
[327378374,1716029446645,-500.0,0.0003589,9]
[327378376,1716029446655,-500.0,0.0003589,9]
[327378378,1716029446664,-500.0,0.0003589,9]
[327378380,1716029446673,-500.0,0.0003589,9]
[327378382,1716029446683,-500.0,0.0003589,9]
[327378384,1716029446692,-500.0,0.0003589,9]
[327378387,1716029446703,-3542.76,0.0003589,9]
[327378389,1716029446712,-673.21,0.0003589,9]
[327378391,1716029446723,-500.0,0.0003589,9]
[327378392,1716029446733,-500.0,0.0003589,9]
[327378395,1716029446743,-500.0,0.0003589,9]
[327378397,1716029446752,-500.0,0.0003589,9]
[327378399,1716029446762,-500.0,0.0003589,9]
[327378401,1716029446771,-500.0,0.0003589,9]
[327378403,1716029446781,-500.0,0.0003589,9]
[327378404,1716029446791,-500.0,0.0003589,9]
[327378405,1716029446801,-500.0,0.0003589,9]
[327378406,1716029446810,-500.0,0.0003589,9]
[327378407,1716029446820,-500.0,0.0003589,9]
[327378408,1716029446832,-500.0,0.0003589,9]
[327378409,1716029446842,-500.0,0.0003589,9]
[327378410,1716029446851,-500.0,0.0003589,9]
[327378411,1716029446860,-508.4303963,0.0003589,9]
[327378412,1716029446869,-500.0,0.0003589,9]
[327378413,1716029446878,-500.0,0.0003589,9]
[327378414,1716029446887,-500.0,0.0003589,9]
[327378415,1716029446896,-500.0,0.0003589,9]
[327378416,1716029446905,-2259.59,0.0003589,9]
[327378417,1716029446915,-534.33,0.0003589,9]
[327378418,1716029446924,-500.0,0.0003589,9]
[327378419,1716029446934,-500.0,0.0003589,9]
[327378420,1716029446943,-500.0,0.0003589,9]
[327378421,1716029446952,-650.09,0.0003589,9]
[327378422,1716029446964,-500.0,0.0003589,9]
[327378423,1716029446973,-500.0,0.0003589,9]
[327378424,1716029446983,-500.0,0.0003589,9]
[327378425,1716029446992,-500.0,0.0003589,2]
[327378426,1716029447001,-500.0,0.0003589,9]
[327378427,1716029447011,-675.53,0.0003589,9]
[327378428,1716029447023,-557.45,0.0003589,9]
[327378429,1716029447033,-500.0,0.0003589,7]
[327378430,1716029447042,-500.0,0.0003589,9]
[327378431,1716029447052,-500.0,0.0003589,9]
[327378432,1716029447061,-500.0,0.0003589,9]
[327378433,1716029447071,-500.0,0.0003589,9]
[327378434,1716029447080,-500.0,0.0003589,9]
[327378435,1716029447090,-500.0,0.0003589,9]
[327378436,1716029447100,-500.0,0.0003589,9]
[327378437,1716029447109,-500.0,0.0003589,9]
[327378438,1716029447120,-565.60466707,0.0003589,9]
[327378439,1716029447129,-500.0,0.0003589,9]
[327378440,1716029447140,-500.0,0.0003589,9]
[327378441,1716029447149,-500.0,0.0003589,9]
[327378442,1716029447159,-500.0,0.0003589,9]
[327378443,1716029447169,-500.0,0.0003589,9]
[327378444,1716029447178,-500.0,0.0003589,9]
[327378445,1716029447188,-500.0,0.0003589,9]
[327378446,1716029447198,-506.09501748,0.0003589,9]
[327378447,1716029447208,-513.79,0.0003589,9]
[327378448,1716029447218,-273.47427096,0.0003589,9]
[327378449,1716029447228,-500.0,0.0003589,9]
[327378450,1716029447237,-500.0,0.0003589,9]
[327378451,1716029447247,-500.0,0.0003589,9]
[327378452,1716029447257,-189.67855875,0.0003589,9]
[327378453,1716029447266,-500.0,0.0003589,9]
[327378454,1716029447276,-500.0,0.0003589,9]
[327378455,1716029447286,-500.0,0.0003589,9]
[327378456,1716029447295,-500.0,0.0003589,9]
[327378457,1716029447305,-153.83129129,0.0003589,9]
[327378458,1716029447315,-395.91811038,0.0003589,9]
[327378459,1716029447326,-500.0,0.0003589,9]
[327378460,1716029447336,-500.0,0.0003589,9]
[327378461,1716029447345,-502.98,0.0003589,9]
[327378462,1716029447356,-500.0,0.0003589,9]
[327378463,1716029447423,-500.0,0.0003589,9]
[327378464,1716029447433,-500.0,0.0003589,9]
[327378465,1716029447443,-617.41,0.0003589,9]
[327378466,1716029447453,-500.0,0.0003589,9]
[327378467,1716029447462,-500.0,0.0003589,9]
[327378468,1716029447472,-500.0,0.0003589,9]
[327378469,1716029447481,-892.19,0.0003589,9]
[327378470,1716029447491,-500.0,0.0003589,9]
[327378471,1716029447500,-1442.76,0.0003589,9]
[327378472,1716029447510,-2606.1,0.0003589,9]
[327378473,1716029447520,-500.0,0.0003589,9]
[327378474,1716029447530,-500.0,0.0003589,9]
[327378475,1716029447539,-500.0,0.0003589,9]
[327378476,1716029447549,-500.0,0.0003589,9]
[327378477,1716029447558,-500.0,0.0003589,9]
[327378478,1716029447567,-2133.52,0.0003589,9]
[327378479,1716029447577,-500.0,0.0003589,9]
[327378480,1716029447587,-500.0,0.0003589,9]
[327378481,1716029447596,-746.58,0.0003589,9]
[327378482,1716029447606,-500.0,0.0003589,9]
[327378483,1716029447617,-500.0,0.0003589,9]
[327378484,1716029447626,-582.09095149,0.0003589,9]
[327378485,1716029447635,-2025.27,0.0003589,9]
[327378486,1716029447645,-811.97,0.0003589,9]
[327378487,1716029447655,-500.0,0.0003589,9]
[327378488,1716029447665,-500.0,0.0003589,9]
[327378489,1716029447674,-2658.77,0.0003589,9]
[327378490,1716029447685,-500.0,0.0003589,9]
[327378491,1716029447694,-500.0,0.0003589,9]
[327378492,1716029447704,-500.0,0.0003589,9]
[327378493,1716029447713,-500.0,0.0003589,9]
[327378494,1716029447724,-500.0,0.0003589,9]
[327378495,1716029447733,-500.0,0.0003589,9]
[327378496,1716029447742,-500.0,0.0003589,9]
[327378497,1716029447752,-500.0,0.0003589,9]
[327378498,1716029447762,-500.0,0.0003589,9]
[327378499,1716029447771,-510.97914918,0.0003589,9]
[327378500,1716029447781,-500.0,0.0003589,9]
[327378501,1716029447791,-2413.18,0.0003589,9]
[327378502,1716029447801,-500.0,0.0003589,9]
[327378503,1716029447811,-500.0,0.0003589,9]
[327378504,1716029447821,-2163.73,0.0003589,9]
[327378505,1716029447831,-500.0,0.0003589,9]
[327378506,1716029447841,-500.0,0.0003589,9]
[327378507,1716029447851,-500.0,0.0003589,9]
[327378508,1716029447861,-590.74,0.0003589,9]
[327378509,1716029447870,-500.0,0.0003589,9]
[327378510,1716029447880,-500.0,0.0003589,9]
[327378511,1716029447889,-500.0,0.0003589,9]
[327378512,1716029447899,-2130.75,0.0003589,9]
[327378513,1716029447909,-500.0,0.0003589,9]
[327378514,1716029447919,-500.0,0.0003589,9]
[327378515,1716029447929,-500.0,0.0003589,9]
[327378516,1716029447939,-500.0,0.0003589,9]
[327378517,1716029447950,-500.0,0.0003589,9]
[327378518,1716029447961,-500.0,0.0003589,9]
[327378519,1716029447971,-500.0,0.0003589,9]
[327378520,1716029447981,-500.0,0.0003589,9]
[327378521,1716029447991,-500.0,0.0003589,9]
[327378522,1716029448001,-500.0,0.0003589,9]
[327378523,1716029448011,-500.0,0.0003589,9]
[327378524,1716029448026,-500.0,0.0003589,9]
[327378525,1716029448036,-500.0,0.0003589,9]
[327378526,1716029448046,-513.65,0.0003589,9]
[327378527,1716029448057,-322.12748069,0.0003589,9]
[327378528,1716029448067,-500.0,0.0003589,9]
[327378529,1716029448076,-500.0,0.0003589,9]
[327378530,1716029448086,-500.0,0.0003589,9]
[327378531,1716029448096,-619.31,0.0003589,9]
[327378532,1716029448106,-500.0,0.0003589,9]
[327378533,1716029448115,-500.0,0.0003589,9]
[327378534,1716029448125,-500.0,0.0003589,9]
[327378535,1716029448136,-500.0,0.0003589,9]
[327378536,1716029448145,-500.0,0.0003589,9]
[327378537,1716029448155,-500.0,0.0003589,9]
[327378538,1716029448164,-500.0,0.0003589,9]
[327378539,1716029448174,-518.22,0.0003589,9]
[327378540,1716029448183,-500.0,0.0003589,9]
[327378541,1716029448193,-500.0,0.0003589,9]
[327378542,1716029448202,-500.0,0.0003589,9]
[327378543,1716029448212,-500.0,0.0003589,9]
[327378544,1716029448221,-500.0,0.0003589,9]
[327378545,1716029448231,-500.0,0.0003589,9]
[327378546,1716029448240,-500.0,0.0003589,9]
[327378547,1716029448249,-500.0,0.0003589,9]
[327378548,1716029448259,-500.0,0.0003589,9]
[327378549,1716029448268,-606.18,0.0003589,9]
[327378550,1716029448278,-150.0,0.0003589,9]
[327378551,1716029448288,-500.0,0.0003589,9]
[327378552,1716029448298,-500.0,0.0003589,9]
[327378553,1716029448307,-500.0,0.0003589,9]
[327378554,1716029448316,-500.0,0.0003589,9]
[327378555,1716029448326,-500.0,0.0003589,9]
[327378556,1716029448335,-500.0,0.0003589,9]
[327378557,1716029448344,-500.0,0.0003589,9]
[327378558,1716029448353,-500.0,0.0003589,9]
[327378559,1716029448362,-500.0,0.0003589,9]
[327378560,1716029448372,-2596.57,0.0003589,9]
[327378561,1716029448381,-2601.06,0.0003589,9]
[327378562,1716029448390,-500.0,0.0003589,9]
[327378563,1716029448399,-500.0,0.0003589,9]
[327378564,1716029448408,-500.0,0.0003589,9]
[327378565,1716029448418,-500.0,0.0003589,9]
[327378566,1716029448427,-500.0,0.0003589,9]
[327378567,1716029448436,-500.0,0.0003589,9]
[327378568,1716029448446,-500.0,0.0003589,9]
[327378569,1716029448455,-500.0,0.0003589,9]
[327378570,1716029448464,-500.0,0.0003589,9]
[327378571,1716029448473,-500.0,0.0003589,9]
[327378572,1716029448482,-500.0,0.0003589,9]
[327378573,1716029448491,-500.0,0.0003589,9]
[327378574,1716029448500,-3751.08,0.0003589,9]
[327378575,1716029448510,-500.0,0.0003589,9]
[327378576,1716029448519,-2679.38,0.0003589,9]
[327378577,1716029448528,-500.0,0.0003589,9]
[327378578,1716029448538,-500.0,0.0003589,9]
[327378579,1716029448548,-564.0841337,0.0003589,9]
[327378580,1716029448557,-500.0,0.0003589,9]
[327378581,1716029448566,-500.0,0.0003589,9]
[327378582,1716029448576,-500.0,0.0003589,9]
[327378583,1716029448585,-533.42054111,0.0003589,9]
[327378584,1716029448595,-500.0,0.0003589,9]
[327378585,1716029448604,-500.0,0.0003589,9]
[327378586,1716029448613,-500.0,0.0003589,9]
[327378587,1716029448623,-500.0,0.0003589,9]
[327378588,1716029448632,-500.0,0.0003589,9]
[327378589,1716029448641,-500.0,0.0003589,9]
[327378590,1716029448650,-608.02163739,0.0003589,9]
[327378591,1716029448659,-500.0,0.0003589,9]
[327378592,1716029448669,-500.0,0.0003589,9]
[327378593,1716029448678,-500.0,0.0003589,9]
[327378594,1716029448688,-500.0,0.0003589,9]
[327378595,1716029448697,-500.0,0.0003589,9]
[327378596,1716029448706,-500.0,0.0003589,9]
[327378597,1716029448716,-500.0,0.0003589,9]
[327378598,1716029448726,-500.0,0.0003589,9]
[327378599,1716029448735,-500.0,0.0003589,9]
[327378600,1716029448744,-500.0,0.0003589,9]
[327378601,1716029448754,-500.0,0.0003589,9]
[327378602,1716029448763,-500.0,0.0003589,9]
[327378603,1716029448772,-500.0,0.0003589,9]
[327378604,1716029448781,-500.0,0.0003589,9]
[327378605,1716029448791,-500.0,0.0003589,9]
[327378606,1716029448801,-500.0,0.0003589,9]
[327378607,1716029448810,-359.58895069,0.0003589,9]
[327378608,1716029448819,-2950.84,0.0003589,9]
[327378609,1716029448828,-1766.5,0.0003589,9]
[327378610,1716029448837,-500.0,0.0003589,9]
[327378611,1716029448847,-500.0,0.0003589,9]
[327378612,1716029448856,-500.0,0.0003589,9]
[327378613,1716029448865,-500.0,0.0003589,9]
[327378614,1716029448875,-500.0,0.0003589,9]
[327378615,1716029448884,-500.0,0.0003589,9]
[327378616,1716029448892,-500.0,0.0003589,9]
[327378617,1716029448902,-931.76,0.0003589,9]
[327378618,1716029448911,-500.0,0.0003589,9]
[327378619,1716029448920,-423.91075779,0.0003589,9]
[327378620,1716029448929,-3254.37,0.0003589,9]
[327378621,1716029448938,-500.0,0.0003589,9]
[327378622,1716029448947,-500.0,0.0003589,9]
[327378623,1716029448956,-500.0,0.0003589,9]
[327378624,1716029448965,-7572.0,0.0003589,9]
[327378625,1716029448975,-500.0,0.0003589,9]
[327378626,1716029448984,-500.0,0.0003589,9]
[327378627,1716029448993,-500.0,0.0003589,9]
[327378628,1716029449002,-500.0,0.0003589,9]
[327378629,1716029449011,-500.0,0.0003589,9]
[327378630,1716029449025,-500.0,0.0003589,9]
[327378631,1716029449034,-500.0,0.0003589,9]
[327378632,1716029449043,-500.0,0.0003589,9]
[327378633,1716029449055,-500.0,0.0003589,9]
[327378634,1716029449063,-511.18,0.0003589,9]
[327378635,1716029449073,-500.0,0.0003589,9]
[327378636,1716029449082,-500.0,0.0003589,9]
[327378637,1716029449091,-500.0,0.0003589,9]
[327378638,1716029449101,-500.0,0.0003589,9]
[327378639,1716029449111,-500.0,0.0003589,9]
[327378640,1716029449121,-168.17376604,0.0003589,9]
[327378641,1716029449130,-500.0,0.0003589,9]
[327378642,1716029449139,-500.0,0.0003589,9]
[327378643,1716029449149,-500.0,0.0003589,9]
[327378644,1716029449158,-859.18,0.0003589,9]
[327378645,1716029449167,-553.13575597,0.0003589,9]
[327378646,1716029449176,-500.0,0.0003589,9]
[327378647,1716029449186,-500.0,0.0003589,9]
[327378648,1716029449196,-207.15348149,0.0003589,9]
[327378649,1716029449632,-292.84651851,0.0003589,9]
[327378650,1716029449642,-500.0,0.0003589,9]
[327378651,1716029449652,-500.0,0.0003589,9]
[327378652,1716029449662,-667.48,0.0003589,9]
[327378653,1716029449671,-2035.17,0.0003589,9]
[327378654,1716029449681,-500.0,0.0003589,9]
[327378655,1716029449690,-500.0,0.0003589,9]
[327378656,1716029449699,-500.0,0.0003589,9]
[327378657,1716029449709,-592.7,0.0003589,9]
[327378658,1716029449719,-500.0,0.0003589,9]
[327378659,1716029449728,-500.0,0.0003589,9]
[327378660,1716029449738,-500.0,0.0003589,9]
[327378661,1716029449748,-500.0,0.0003589,9]
[327378662,1716029449758,-500.0,0.0003589,9]
[327378663,1716029449767,-500.0,0.0003589,9]
[327378664,1716029449776,-551.46,0.0003589,9]
[327378665,1716029449786,-551.86,0.0003589,9]
[327378666,1716029449795,-1361.6,0.0003589,9]
[327378667,1716029449806,-500.0,0.0003589,9]
[327378668,1716029449815,-500.0,0.0003589,9]
[327378669,1716029449825,-380.92973691,0.0003589,9]
[327378670,1716029449990,-422.35,0.00035616,9]
[327378671,1716029450153,-536.24374703,0.00035616,9]
[327378672,1716029450165,-691.88625297,0.00035616,9]
[327378673,1716029450175,-119.07026309,0.0003589,9]
[327378674,1716029450186,-500.0,0.0003589,9]
[327378675,1716029450195,-500.0,0.0003589,9]
[327378676,1716029450204,-500.0,0.0003589,9]
[327378677,1716029450213,-379.68348394,0.0003589,9]
[327378678,1716029450596,-6094.27729119,0.00035616,9]
[327378679,1716029450859,-513.96534533,0.00017259,2]
[327378680,1716029450869,-198.88415335,0.00017259,2]
[327378681,1716029450878,-428.3967097,0.00017259,2]